bitfinex/quotes_SOLUSD_20260114
["timestamp","ask_amount","ask_price","bid_price","bid_amount"]
[1768364811959,0.52565697,145.44,145.41,6.87710611]
[1768364812265,0.52565697,145.44,145.41,7.59761076]
[1768364813254,0.69357817,145.45,145.42,0.72050465]
[1768364814765,0.66357818,145.45,145.42,0.72050465]
[1768364815967,0.66357818,145.45,145.42,7.59704608]
[1768364816163,12.54,145.46,145.43,0.72050465]
[1768364816468,4.58834353,145.45,145.43,0.72050465]
[1768364816766,13.23357817,145.46,145.43,0.72050465]
[1768364816966,4.58835519,145.45,145.43,0.72050465]
[1768364817146,13.23357817,145.46,145.43,7.59656069]
[1768364817344,4.58944712,145.45,145.43,7.59656069]
[1768364817547,13.23357817,145.46,145.43,7.59656069]
[1768364817749,4.58944712,145.45,145.43,7.59656069]
[1768364818042,13.23357817,145.46,145.43,7.59656069]
[1768364818248,4.59037719,145.45,145.43,7.59656069]
[1768364818446,13.23357817,145.46,145.43,0.72050465]
[1768364818770,4.59029724,145.45,145.43,0.72050465]
[1768364822172,4.59029724,145.44,145.43,0.72050465]
[1768364822565,4.59029724,145.45,145.43,0.72050465]
[1768364822767,4.59029724,145.44,145.43,0.72050465]
[1768364823153,4.59029724,145.45,145.41,0.72050465]
[1768364823348,6.4236567,145.5,145.44,4.24834621]
[1768364823547,0.69357817,145.49,145.45,4.24834621]
[1768364824169,0.69357817,145.49,145.46,6.87474219]
[1768364827379,0.69357817,145.49,145.45,2.71871906]
[1768364831181,0.69357817,145.49,145.46,6.87474219]
[1768364833979,0.69357817,145.49,145.42,24.0682162]
[1768364834287,0.69357817,145.49,145.45,2.71871906]
[1768364835378,0.69357817,145.49,145.46,6.14974219]
[1768364841584,0.69357817,145.49,145.46,23.99699339]
[1768364841779,0.69357817,145.49,145.46,3.37911477]
[1768364841980,0.71189581,145.5,145.47,0.66039571]
[1768364842570,0.71189581,145.49,145.45,0.66039571]
[1768364843274,0.71189581,145.46,145.42,24.72861191]
[1768364843479,0.50189511,145.46,145.42,24.72861191]
[1768364843674,0.32189334,145.46,145.42,24.72861191]
[1768364843992,0.02188827,145.46,145.42,24.72861191]
[1768364844183,15.25871906,145.48,145.42,24.72861191]
[1768364844371,15.25871906,145.48,145.43,0.66039571]
[1768364844571,2.71871906,145.47,145.43,0.66039571]
[1768364845800,15.25871906,145.48,145.44,6.87568756]
[1768364846106,0.71189581,145.47,145.44,6.87568756]
[1768364847098,0.71189581,145.46,145.44,6.87568756]
[1768364848125,0.71189581,145.46,145.44,0.66039571]
[1768364848410,13.25189581,145.48,145.44,0.66039571]
[1768364849200,0.71189581,145.48,145.44,0.66039571]
[1768364850286,0.71189581,145.48,145.45,6.87521485]
[1768364851205,0.71189581,145.48,145.45,6.02400647]
[1768364854485,15.25871906,145.49,145.45,6.02400647]
[1768364854486,15.87061487,145.49,145.46,0.66039571]
[1768364855691,0.099,145.48,145.45,6.74099451]
[1768364856108,15.25871906,145.49,145.46,0.71698804]
[1768364856404,15.35771906,145.49,145.46,0.71698804]
[1768364858202,22.13205622,145.49,145.45,0.71698804]
[1768364858512,7.30913555,145.48,145.44,7.59223051]
[1768364858690,3.22548591,145.48,145.44,7.59223051]
[1768364859299,0.50676685,145.48,145.44,7.59223051]
[1768364859699,0.50676685,145.48,145.45,0.71698804]
[1768364860208,0.50676685,145.48,145.45,7.5921835]
[1768364860713,0.50676685,145.48,145.45,0.71698804]
[1768364861110,0.50676685,145.48,145.45,6.87518179]
[1768364862199,0.50676685,145.48,145.45,7.59216983]
[1768364862897,0.50676685,145.48,145.45,6.87518179]
[1768364864012,0.50676685,145.48,145.45,0.71698804]
[1768364865203,0.50268918,145.46,145.42,6.87638266]
[1768364865385,0.50268918,145.46,145.42,7.5933707]
[1768364866002,0.50268918,145.46,145.42,6.87638266]
[1768364866792,0.50268918,145.46,145.42,7.5933707]
[1768364866994,3.22548591,145.47,145.43,0.71698804]
[1768364868909,10.09988372,145.47,145.43,0.71698804]
[1768364870604,0.50268918,145.47,145.43,6.87615334]
[1768364871610,0.50268918,145.47,145.44,0.71698804]
[1768364871801,9.69151614,145.48,145.44,0.71698804]
[1768364872000,9.69151614,145.48,145.43,6.87615334]
[1768364872001,0.50268918,145.47,145.43,6.87615334]
[1768364872198,0.28730034,145.47,145.43,7.59314138]
[1768364873516,19.41379708,145.48,145.44,0.71698804]
[1768364873811,9.59224959,145.49,145.45,0.71698804]
[1768364873995,12.54,145.48,145.45,0.71698804]
[1768364875315,11.24875746,145.48,145.46,0.71698804]
[1768364875505,9.52710288,145.48,145.46,0.71698804]
[1768364875710,8.0206552,145.48,145.46,0.71698804]
[1768364875910,6.5142085,145.48,145.46,0.71698804]
[1768364876094,4.79255373,145.48,145.46,0.71698804]
[1768364876298,9.88327468,145.5,145.46,0.71698804]
[1768364878921,2.71871906,145.49,145.46,0.71698804]
[1768364883826,9.59189667,145.5,145.46,0.71698804]
[1768364884229,6.87317761,145.5,145.46,0.71698804]
[1768364884528,9.59189667,145.5,145.46,0.71698804]
[1768364885227,6.87317761,145.5,145.46,0.71698804]
[1768364885429,9.59189667,145.5,145.46,0.71698804]
[1768364885828,2.71871906,145.49,145.46,0.71698804]
[1768364887136,9.59189667,145.5,145.46,0.71698804]
[1768364887439,11.12196744,145.5,145.46,0.71698804]
[1768364893437,4.24878983,145.49,145.46,0.71698804]
[1768364894739,11.41142166,145.5,145.46,0.71698804]
[1768364896936,11.12196744,145.5,145.46,0.71698804]
[1768364897434,121.35786172,145.51,145.47,0.70653375]
[1768364897614,133.89786172,145.51,145.47,0.70653375]
[1768364898127,4.24878983,145.5,145.47,0.70653375]
[1768364898940,3.96538088,145.5,145.47,0.70653375]
[1768364899843,0.28945422,145.49,145.46,0.6719283]
[1768364900143,3.96538088,145.49,145.46,0.6719283]
[1768364902041,10.8387183,145.49,145.46,0.6719283]
[1768364903441,6.87333742,145.49,145.46,0.6719283]
[1768364903641,10.8387183,145.49,145.46,0.6719283]
[1768364909345,6.87333742,145.49,145.46,0.6719283]
[1768364919637,6.97233742,145.49,145.46,0.6719283]
[1768364921363,6.97233742,145.49,145.44,6.87547845]
[1768364921364,0.28945422,145.48,145.44,7.54948683]
[1768364921542,0.28945422,145.48,145.45,0.67400838]
[1768364921941,7.16471543,145.49,145.45,0.67400838]
[1768364923257,11.13009631,145.49,145.45,0.67400838]
[1768364923455,0.099,145.48,145.45,0.67400838]
[1768364925140,11.13009631,145.49,145.45,0.67400838]
[1768364928965,0.099,145.48,145.45,0.67400838]
[1768364929170,10.93837885,145.48,145.45,0.67400838]
[1768364929468,0.28945422,145.47,145.44,6.87564633]
[1768364929770,0.28945422,145.47,145.43,20.08996207]
[1768364931780,0.28945422,145.47,145.44,0.67400838]
[1768364933572,7.16537598,145.48,145.44,0.67400838]
[1768364935169,7.16537598,145.48,145.44,7.54963692]
[1768364935966,7.16537598,145.48,145.44,0.67400838]
[1768364936565,0.099,145.47,145.43,20.08994304]
[1768364936761,0.28945422,145.46,145.43,0.67400838]
[1768364938262,0.10090455,145.45,145.42,0.67400838]
[1768364939570,0.10090455,145.45,145.42,7.55061826]
[1768364940466,0.29137801,145.46,145.42,7.55061826]
[1768364941970,7.16612963,145.46,145.42,7.55061826]
[1768364944474,7.16612963,145.46,145.43,0.67400838]
[1768364945175,0.099,145.45,145.41,0.66950688]
[1768364945364,7.16612963,145.46,145.41,0.66950688]
[1768364945559,4.25675889,145.46,145.42,0.66950688]
[1768364946174,0.29137801,145.46,145.43,0.66950688]
[1768364947775,4.25675889,145.46,145.43,0.66950688]
[1768364949380,2.83061061,145.46,145.43,0.66950688]
[1768364950975,0.29137801,145.46,145.43,0.66950688]
[1768364951277,2.83061061,145.46,145.43,0.66950688]
[1768364951780,0.099,145.45,145.41,7.54642522]
[1768364952158,0.099,145.45,145.42,6.87653783]
[1768364953379,0.099,145.45,145.41,7.54639501]
[1768364955283,2.83061061,145.46,145.42,0.66950688]
[1768364956887,2.5392326,145.45,145.42,0.66950688]
[1768364958286,0.29137801,145.44,145.4,7.56933228]
[1768364958587,0.29137801,145.44,145.4,0.69175319]
[1768364958961,2.5392326,145.44,145.4,0.69175319]
[1768364959181,0.29137801,145.45,145.4,0.69175319]
[1768364959589,2.83061061,145.45,145.4,0.69175319]
[1768364959779,0.099,145.44,145.4,0.69175319]
[1768364960177,0.099,145.44,145.4,7.56932149]
[1768364960380,0.099,145.44,145.4,10.10855409]
[1768364960685,0.099,145.44,145.4,7.56932149]
[1768364963181,7.16624341,145.46,145.41,0.69175319]
[1768364963382,2.6382326,145.45,145.41,0.69175319]
[1768364963789,0.099,145.45,145.41,0.69175319]
[1768364963970,0.099,145.45,145.4,7.56932149]
[1768364964289,0.099,145.44,145.41,0.69175319]
[1768364964481,2.83061061,145.45,145.41,0.69175319]
[1768364964678,0.29137801,145.45,145.41,0.69175319]
[1768364964886,0.29137801,145.45,145.4,6.8775683]
[1768364964887,0.099,145.44,145.4,7.56932149]
[1768364966387,2.6382326,145.45,145.41,0.69175319]
[1768364969889,0.28945422,145.44,145.41,0.69175319]
[1768364970488,2.5392326,145.45,145.41,0.69175319]
[1768364970793,2.6382326,145.45,145.41,0.69175319]
[1768364971494,0.28945422,145.44,145.41,0.69175319]
[1768364971994,2.83061061,145.45,145.41,0.69175319]
[1768364972380,0.29137801,145.45,145.41,0.69175319]
[1768364973397,2.83061061,145.45,145.41,0.69175319]
[1768364974297,7.16660619,145.45,145.41,0.69175319]
[1768364976277,6.87522818,145.45,145.41,0.69175319]
[1768364976482,9.41413252,145.46,145.42,0.69017708]
[1768364978201,9.70358674,145.46,145.42,0.69017708]
[1768364978406,2.5392326,145.45,145.42,0.69017708]
[1768364980200,2.64013715,145.45,145.42,0.69017708]
[1768364981591,0.10090455,145.45,145.42,0.69017708]
[1768364982396,9.70551053,145.46,145.42,0.69017708]
[1768364988509,7.16627793,145.46,145.42,0.69017708]
[1768364988708,2.5392326,145.45,145.42,0.69017708]
[1768364988911,9.70551053,145.46,145.42,0.69017708]
[1768364990600,9.70551053,145.46,145.42,0.63017708]
[1768364992115,2.5392326,145.45,145.42,0.63017708]
[1768364992301,9.70551053,145.46,145.42,0.63017708]
[1768364992806,0.1584,145.45,145.42,0.63017708]
[1768364993107,2.6976326,145.45,145.42,0.57017708]
[1768364993492,9.57286223,145.45,145.42,0.57017708]
[1768364993793,2.5392326,145.44,145.42,0.57017708]
[1768364993995,2.5392326,145.44,145.4,6.87744632]
[1768364994410,2.95061061,145.44,145.4,6.87744632]
[1768364995113,2.95061061,145.44,145.41,0.69017708]
[1768364995310,2.95061061,145.44,145.41,0.63017708]
[1768364999016,9.82630466,145.44,145.41,0.63017708]
[1768364999619,2.95061061,145.44,145.41,0.63017708]
[1768364999803,2.95061061,145.44,145.4,0.69017708]
[1768364999804,2.5392326,145.42,145.4,0.69017708]
[1768365000006,2.6976326,145.43,145.4,0.69017708]
[1768365000518,0.16090448,145.41,145.38,6.87831433]
[1768365000706,0.16090448,145.41,145.38,0.69017708]
[1768365001521,0.16090448,145.41,145.38,7.56858942]
[1768365001902,2.70013708,145.41,145.38,7.56858942]
[1768365002103,0.16090448,145.41,145.38,7.56858942]
[1768365002622,2.70013708,145.41,145.38,7.56858942]
[1768365003694,2.70013708,145.41,145.38,0.69017708]
[1768365003900,2.5392326,145.4,145.38,0.69017708]
[1768365004099,2.5392326,145.4,145.37,0.69017708]
[1768365004593,2.94560139,145.4,145.37,0.69017708]
[1768365006312,2.5392326,145.38,145.36,0.70063863]
[1768365006605,2.9431713,145.38,145.35,0.90063863]
[1768365006816,0.4039387,145.38,145.35,0.90063863]
[1768365007209,2.5392326,145.4,145.36,7.58005347]
[1768365007414,9.88772193,145.41,145.37,0.70063863]
[1768365007709,2.5392326,145.41,145.38,0.70063863]
[1768365008020,3.00688683,145.41,145.38,0.70063863]
[1768365008225,9.88408784,145.41,145.38,0.64063863]
[1768365008523,9.88408784,145.41,145.36,6.87932526]
[1768365009528,2.5392326,145.4,145.36,6.87932526]
[1768365010126,2.70131914,145.4,145.36,7.57996389]
[1768365010808,2.5392326,145.39,145.36,0.70063863]
[1768365011320,7.03982825,145.4,145.36,0.70063863]
[1768365011321,11.01114184,145.4,145.36,0.70063863]
[1768365013027,0.16208654,145.4,145.37,0.70063863]
[1768365013526,4.5026916,145.41,145.38,0.70063863]
[1768365013710,3.97131359,145.41,145.38,0.70063863]
[1768365013914,11.37960436,145.42,145.38,0.70063863]
[1768365015229,4.07031359,145.41,145.38,0.70063863]
[1768365015925,3.97131359,145.4,145.38,0.70063863]
[1768365016818,6.97618994,145.41,145.37,0.70063863]
[1768365017126,3.97131359,145.4,145.38,0.70063863]
[1768365017912,4.49836782,145.4,145.37,0.71181325]
[1768365018435,3.97131359,145.39,145.37,0.71181325]
[1768365019410,0.52281649,145.38,145.35,0.91181325]
[1768365019609,4.5026916,145.39,145.35,0.91181325]
[1768365019814,4.07031359,145.38,145.35,0.91181325]
[1768365020334,0.099,145.38,145.35,0.91181325]
[1768365022636,7.4095498,145.39,145.35,0.91181325]
[1768365023233,0.52705423,145.37,145.35,0.2]
[1768365024632,0.10328054,145.36,145.35,0.2]
[1768365025138,0.10328054,145.36,145.33,0.2]
[1768365025139,4.07459413,145.36,145.33,0.2]
[1768365025342,0.10328054,145.36,145.33,0.2]
[1768365025651,0.10328054,145.36,145.33,0.91181325]
[1768365025856,7.21069465,145.37,145.34,0.71181325]
[1768365029037,0.33137801,145.37,145.34,6.88040467]
[1768365029250,0.33137801,145.37,145.34,10.85171826]
[1768365029554,0.33137801,145.37,145.33,11.76379698]
[1768365029747,7.20994789,145.38,145.34,0.71181325]
[1768365032940,115.38090965,145.39,145.35,0.71181325]
[1768365035245,111.40959606,145.39,145.35,0.71181325]
[1768365035448,115.38090965,145.39,145.35,0.71181325]
[1768365035861,104.2,145.39,145.36,0.68823492]
[1768365036175,21.49497889,145.42,145.37,0.68823492]
[1768365036342,10.84842787,145.41,145.37,0.68823492]
[1768365040146,6.87711428,145.41,145.37,0.68823492]
[1768365040749,10.84842787,145.41,145.37,0.68823492]
[1768365041256,28.04119315,145.41,145.37,0.68823492]
[1768365041459,3.97131359,145.38,145.35,0.68823492]
[1768365041649,3.97131359,145.38,145.33,0.2]
[1768365041650,0.32677669,145.37,145.33,0.2]
[1768365041853,0.1035553,145.36,145.33,0.2]
[1768365042863,3.97131359,145.37,145.34,0.68823492]
[1768365043250,10.85060716,145.37,145.34,0.68823492]
[1768365043762,7.20834779,145.37,145.34,0.68823492]
[1768365043967,11.17966138,145.37,145.33,0.88823492]
[1768365044650,11.17966138,145.37,145.34,0.68823492]
[1768365045358,10.85060716,145.37,145.34,0.68823492]
[1768365045867,6.87929357,145.37,145.34,0.68823492]
[1768365049367,6.87964953,145.36,145.33,0.88823492]
[1768365049568,6.87964953,145.36,145.34,0.68823492]
[1768365049951,0.33137801,145.38,145.34,0.68823492]
[1768365050151,34.03834644,145.39,145.34,0.68823492]
[1768365051476,6.87868332,145.38,145.34,0.68823492]
[1768365052982,3.97131359,145.35,145.33,0.88823492]
[1768365053279,0.10130055,145.36,145.33,0.88823492]
[1768365053583,10.95233757,145.36,145.33,0.88823492]
[1768365053883,6.98102398,145.36,145.33,0.88823492]
[1768365054083,10.95233757,145.36,145.33,0.88823492]
[1768365054781,4.29809027,145.35,145.33,0.2]
[1768365055375,3.97131359,145.35,145.33,0.2]
[1768365056474,10.85140744,145.35,145.33,0.2]
[1768365056675,6.88009385,145.35,145.33,0.2]
[1768365061973,6.88009385,145.35,145.33,0.88823492]
[1768365062285,19.41961864,145.36,145.33,0.88823492]
[1768365062582,6.97722332,145.39,145.35,3.97131359]
[1768365062789,0.32905422,145.38,145.35,3.97131359]
[1768365062981,6.87822332,145.39,145.36,0.68823492]
[1768365063176,7.03662328,145.39,145.36,0.62823496]
[1768365063383,7.03662328,145.39,145.34,3.97131359]
[1768365064688,7.03662328,145.39,145.34,10.85170376]
[1768365065193,7.03662328,145.39,145.35,0.72066716]
[1768365068382,11.00793687,145.39,145.35,0.72066716]
[1768365071803,4.29926645,145.36,145.33,0.92066716]
[1768365071997,4.29926645,145.36,145.33,0.2]
[1768365073285,2.54323277,145.36,145.33,0.92066716]
[1768365074205,6.87947165,145.36,145.33,0.92066716]
[1768365076388,6.87947165,145.36,145.34,0.72066716]
[1768365079807,4.59233979,145.35,145.34,0.72066716]
[1768365081290,4.59233979,145.35,145.32,0.2]
[1768365081486,6.87947165,145.36,145.32,0.2]
[1768365081808,4.59267628,145.35,145.32,0.90628112]
[1768365082104,7.07084962,145.36,145.32,0.90628112]
[1768365082308,4.69193139,145.35,145.32,0.90628112]
[1768365082509,4.59293139,145.34,145.32,0.90628112]
[1768365082811,0.099,145.35,145.32,0.90628112]
[1768365083110,4.59216434,145.34,145.32,0.90628112]
[1768365083291,0.099,145.35,145.32,0.90628112]
[1768365083487,4.59258386,145.34,145.32,0.90628112]
[1768365083691,6.97903506,145.35,145.32,0.2]
[1768365083895,4.59247399,145.34,145.32,0.2]
[1768365084188,6.97903506,145.35,145.32,0.2]
[1768365084510,4.59299965,145.34,145.32,0.2]
[1768365084711,0.19045419,145.34,145.32,0.2]
[1768365085503,4.59332229,145.33,145.31,0.10954581]
[1768365085693,4.59332229,145.32,145.31,0.10954581]
[1768365086500,4.5633223,145.32,145.31,0.10954581]
[1768365094111,4.5633223,145.32,145.31,0.81582693]
[1768365094702,4.5633223,145.32,145.31,0.10954581]
[1768365097321,21.96378777,145.34,145.31,0.10954581]
[1768365098515,4.58612003,145.33,145.31,0.10954581]
[1768365098706,21.96378777,145.34,145.31,0.10954581]
[1768365098906,4.58612003,145.33,145.31,0.10954581]
[1768365099116,21.96378777,145.34,145.31,0.10954581]
[1768365099311,4.58592661,145.33,145.31,0.10954581]
[1768365099510,21.96378777,145.34,145.31,0.10954581]
[1768365099715,4.585834,145.33,145.31,0.10954581]
[1768365099915,21.96378777,145.34,145.31,0.10954581]
[1768365100117,4.58583256,145.33,145.31,0.10954581]
[1768365100420,21.96378777,145.34,145.31,0.10954581]
[1768365100617,4.58555259,145.33,145.31,0.10954581]
[1768365100924,21.96378777,145.34,145.31,0.10954581]
[1768365101125,4.58555259,145.33,145.31,0.10954581]
[1768365101325,21.96378777,145.34,145.31,0.10954581]
[1768365101525,4.58529295,145.33,145.31,0.10954581]
[1768365101718,21.96378777,145.34,145.31,0.10954581]
[1768365101922,4.58529295,145.33,145.31,0.10954581]
[1768365102114,21.96378777,145.34,145.31,0.10954581]
[1768365102315,4.58508346,145.33,145.31,0.10954581]
[1768365102515,21.96378777,145.34,145.31,0.10954581]
[1768365102716,4.5850546,145.33,145.31,0.10954581]
[1768365102919,21.96378777,145.34,145.31,0.10954581]
[1768365103115,4.58505605,145.33,145.31,0.10954581]
[1768365103414,21.96378777,145.34,145.31,0.10954581]
[1768365103614,4.58487742,145.33,145.31,0.10954581]
[1768365103815,21.96378777,145.34,145.31,0.10954581]
[1768365104017,4.58487887,145.33,145.31,0.10954581]
[1768365104219,21.96378777,145.34,145.31,0.10954581]
[1768365104441,4.58466904,145.33,145.31,0.10954581]
[1768365104632,21.96378777,145.34,145.31,0.10954581]
[1768365104934,14.0092125,145.33,145.31,0.10954581]
[1768365105127,4.58502356,145.32,145.31,0.10954581]
[1768365107317,9.42419749,145.33,145.31,0.10954581]
[1768365107633,4.58433521,145.32,145.31,0.10954581]
[1768365107835,7.12756798,145.32,145.31,0.10954581]
[1768365108836,7.12756798,145.32,145.3,1.4461159]
[1768365109023,2.54323277,145.32,145.3,1.4461159]
[1768365109712,9.42433354,145.33,145.3,1.4461159]
[1768365109916,4.58549866,145.32,145.3,1.4461159]
[1768365110122,9.42433354,145.33,145.3,1.4461159]
[1768365110422,4.58549721,145.32,145.3,1.4461159]
[1768365110623,9.42433354,145.33,145.3,1.4461159]
[1768365110830,4.58619443,145.32,145.3,1.4461159]
[1768365111027,9.42433354,145.33,145.3,1.4461159]
[1768365111318,4.58619202,145.32,145.3,1.4461159]
[1768365111517,9.42433354,145.33,145.3,1.4461159]
[1768365111716,4.58702179,145.32,145.3,1.4461159]
[1768365111922,9.42433354,145.33,145.3,1.4461159]
[1768365112130,4.58685346,145.32,145.3,1.4461159]
[1768365112331,9.42433354,145.33,145.3,1.4461159]
[1768365112527,4.58767173,145.32,145.3,1.4461159]
[1768365112725,9.42433354,145.33,145.3,1.4461159]
[1768365112918,4.58783866,145.32,145.3,1.4461159]
[1768365113114,9.42433354,145.33,145.3,1.4461159]
[1768365113322,4.58880595,145.32,145.3,1.4461159]
[1768365113522,9.42433354,145.33,145.3,1.4461159]
[1768365113722,4.58863899,145.32,145.3,1.4461159]
[1768365113923,9.42433354,145.33,145.3,1.4461159]
[1768365114146,4.58856745,145.32,145.3,1.4461159]
[1768365114464,21.96385704,145.34,145.3,1.4461159]
[1768365114617,21.96385704,145.34,145.3,2.15806349]
[1768365114618,4.58941186,145.33,145.3,2.15806349]
[1768365114918,4.58941186,145.32,145.3,2.15806349]
[1768365115118,21.96385704,145.34,145.3,2.15806349]
[1768365115350,4.58974873,145.33,145.3,2.15806349]
[1768365115524,4.58974873,145.32,145.3,1.4461159]
[1768365115746,4.58974873,145.31,145.3,1.4461159]
[1768365116137,4.58974873,145.32,145.3,1.4461159]
[1768365116334,4.58974873,145.31,145.3,1.4461159]
[1768365116540,4.58974873,145.32,145.3,1.4461159]
[1768365117669,4.58974873,145.32,145.3,2.15806349]
[1768365118775,11.47113592,145.32,145.3,2.15806349]
[1768365118978,4.58974873,145.31,145.3,2.15806349]
[1768365119867,11.47158755,145.31,145.28,0.2]
[1768365120048,4.58974873,145.3,145.28,0.2]
[1768365120664,21.96507159,145.31,145.28,0.2]
[1768365121767,21.96507159,145.31,145.28,0.91194759]
[1768365122574,2.54323277,145.29,145.26,0.91194759]
[1768365122755,2.54323277,145.27,145.25,0.2]
[1768365123480,2.54323277,145.27,145.25,1e-08]
[1768365123981,2.54323277,145.27,145.24,0.71194759]
[1768365123982,2.54323277,145.26,145.24,0.71194759]
[1768365126771,9.42744166,145.26,145.24,0.71194759]
[1768365127661,6.88420889,145.26,145.24,0.71194759]
[1768365127982,9.42744166,145.26,145.24,0.71194759]
[1768365129662,6.88420889,145.26,145.24,0.71194759]
[1768365129861,9.42744166,145.26,145.24,0.71194759]
[1768365130872,2.54323277,145.26,145.24,0.71194759]
[1768365131196,2.54323277,145.26,145.23,0.67815765]
[1768365131197,9.42758052,145.26,145.23,0.67815765]
[1768365131401,2.54323277,145.25,145.23,0.67815765]
[1768365133487,3.97936866,145.25,145.23,0.67815765]
[1768365133687,3.97936866,145.26,145.23,0.67815765]
[1768365133889,6.88347221,145.28,145.24,0.67815765]
[1768365134100,3.97936866,145.27,145.24,0.67815765]
[1768365137678,10.86313359,145.27,145.24,0.67815765]
[1768365138297,10.86283307,145.28,145.24,0.67815765]
[1768365139807,3.97936866,145.27,145.24,0.67815765]
[1768365140811,10.86283307,145.28,145.24,0.67815765]
[1768365143899,10.86350941,145.27,145.24,0.67815765]
[1768365144292,6.88414075,145.27,145.25,0.71289947]
[1768365144592,10.86350941,145.27,145.25,0.71289947]
[1768365148511,6.88414075,145.27,145.25,0.71289947]
[1768365148887,6.88330347,145.28,145.27,0.71289947]
[1768365149092,104.2,145.29,145.27,0.19806989]
[1768365149614,4.66046474,145.31,145.27,0.19806989]
[1768365149615,6.88253022,145.3,145.27,0.19806989]
[1768365155720,4.58647166,145.29,145.27,0.19806989]
[1768365155903,6.88253022,145.3,145.27,0.19806989]
[1768365156101,4.58646671,145.29,145.27,0.19806989]
[1768365156406,6.88253022,145.3,145.27,0.19806989]
[1768365156608,4.58713985,145.29,145.27,0.19806989]
[1768365156811,6.88253022,145.3,145.27,0.19806989]
[1768365157028,11.47006316,145.29,145.27,0.19806989]
[1768365157199,6.88292186,145.29,145.27,0.19806989]
[1768365161321,4.59239026,145.28,145.27,0.19806989]
[1768365175135,6.88292186,145.29,145.25,10.86403598]
[1768365175616,7.59617037,145.3,145.26,0.21017042]
[1768365177435,7.59617037,145.3,145.26,4.18953908]
[1768365179040,7.59617037,145.3,145.26,0.21017042]
[1768365179336,0.71362882,145.29,145.26,4.18953908]
[1768365179518,0.71362882,145.29,145.26,0.21017042]
[1768365179718,0.71362882,145.26,145.22,0.41017042]
[1768365180524,0.71362882,145.25,145.22,0.41017042]
[1768365181739,0.71362882,145.24,145.22,0.2]
[1768365183439,7.5986542,145.25,145.22,0.41017042]
[1768365183617,0.71362882,145.25,145.22,0.41017042]
[1768365184440,11.57740784,145.26,145.22,0.41017042]
[1768365185619,0.71621211,145.25,145.22,0.41017042]
[1768365187439,7.60062247,145.26,145.23,0.21017042]
[1768365187741,5.74155851,145.29,145.23,0.21017042]
[1768365187742,0.71621211,145.29,145.25,3.97936866]
[1768365188125,0.71621211,145.29,145.24,3.97936866]
[1768365188744,7.59904919,145.29,145.24,10.86430066]
[1768365188945,0.71621211,145.28,145.24,10.86430066]
[1768365189444,0.71621211,145.28,145.24,6.884932]
[1768365190445,0.71621211,145.27,145.22,0.2]
[1768365190747,0.71621211,145.27,145.22,16.71936866]
[1768365191653,7.60000845,145.27,145.22,23.60530878]
[1768365193134,6.88379634,145.27,145.22,23.60530878]
[1768365193333,0.71621211,145.26,145.22,22.17183979]
[1768365194648,7.60000845,145.27,145.22,22.17183979]
[1768365196046,7.60000845,145.27,145.22,19.62594012]
[1768365196249,0.71621211,145.29,145.23,2.54589967]
[1768365196449,0.71621211,145.29,145.24,2.54589967]
[1768365197051,0.71621211,145.29,145.22,36.84119972]
[1768365197234,0.71621211,145.29,145.23,2.54589967]
[1768365197433,7.59913928,145.29,145.22,36.84119972]
[1768365197647,7.59913928,145.29,145.23,9.43130862]
[1768365197648,0.71621211,145.28,145.23,9.43130862]
[1768365198448,0.71621211,145.28,145.23,6.88540895]
[1768365198743,0.72029561,145.27,145.23,9.43130862]
[1768365199053,0.72029561,145.27,145.23,6.88540895]
[1768365201141,7.60370046,145.28,145.23,6.88540895]
[1768365202468,7.60370046,145.28,145.23,9.43130862]
[1768365202843,7.60370046,145.28,145.23,6.88540895]
[1768365203064,7.60370046,145.28,145.23,9.43130862]
[1768365206042,6.88340485,145.28,145.23,9.43130862]
[1768365207865,7.60331022,145.29,145.23,9.43130862]
[1768365212170,104.92029561,145.3,145.23,9.43130862]
[1768365212470,0.72029561,145.29,145.23,24.09948317]
[1768365212668,0.72029561,145.28,145.23,6.88540895]
[1768365212856,0.72029561,145.27,145.23,19.42540895]
[1768365213366,0.72029561,145.25,145.21,0.2]
[1768365213548,0.72029561,145.25,145.21,7.08637396]
[1768365213744,0.72029561,145.24,145.21,0.2]
[1768365213958,0.72029561,145.24,145.2,0.2]
[1768365214359,0.72029561,145.24,145.2,7.08702378]
[1768365214865,0.72029561,145.24,145.2,9.63292345]
[1768365215276,19.96460933,145.3,145.2,24.30465463]
[1768365215576,0.65622073,145.3,145.27,2.54589967]
[1768365215758,7.53835476,145.31,145.28,2.54589967]
[1768365215954,0.65622073,145.31,145.27,2.54589967]
[1768365216149,7.53811524,145.31,145.27,2.54589967]
[1768365220480,0.65622073,145.3,145.25,12.54]
[1768365220676,0.65622073,145.29,145.23,6.88560471]
[1768365220876,0.65622073,145.29,145.25,2.54589967]
[1768365222662,7.53934079,145.29,145.25,2.54589967]
[1768365226886,7.53934079,145.29,145.24,12.54]
[1768365227062,7.53934079,145.29,145.25,2.54589967]
[1768365229590,0.65622073,145.28,145.24,15.08589967]
[1768365229762,0.65622073,145.28,145.24,21.97103875]
[1768365231186,0.65622073,145.28,145.25,2.54589967]